bitfinex-derivatives/quotes_SOLF0:USTF0_20260208
["timestamp","ask_amount","ask_price","bid_price","bid_amount"]
[1770578824197,8.70924384,88.021,87.991,3.68426471]
[1770578824390,8.70924384,88.02,87.991,3.68426471]
[1770578824701,3.87287204,88.033,87.991,3.68426471]
[1770578824902,3.87287204,88.031,87.991,3.68426471]
[1770578825104,8.70953985,88.03,87.991,3.68426471]
[1770578825304,8.70953985,88.029,87.991,3.68426471]
[1770578825601,8.70953985,88.028,87.991,3.68426471]
[1770578825804,8.70953985,88.027,87.991,3.68426471]
[1770578826005,8.70953985,88.026,87.991,3.68426471]
[1770578826302,8.70953985,88.025,87.991,3.68426471]
[1770578826493,8.70953985,88.024,87.991,3.68426471]
[1770578826697,8.70953985,88.023,87.991,3.68426471]
[1770578826903,3.87287204,88.031,87.991,3.68426471]
[1770578827104,3.87287204,88.029,87.991,3.68426471]
[1770578827404,8.70907681,88.028,87.991,3.68426471]
[1770578827605,8.70907681,88.027,87.991,3.68426471]
[1770578827902,8.70907681,88.026,87.991,3.68426471]
[1770578828104,8.70907681,88.025,87.991,3.68426471]
[1770578828302,8.70907681,88.024,87.991,3.68426471]
[1770578828496,8.70907681,88.023,87.991,3.68426471]
[1770578828699,3.87287204,88.029,87.991,3.68426471]
[1770578828896,12.58165895,88.028,87.991,3.68426471]
[1770578829100,8.70878691,88.027,87.991,3.68426471]
[1770578829298,8.70878691,88.026,87.991,3.68426471]
[1770578829497,8.70878691,88.025,87.991,3.68426471]
[1770578829697,8.70878691,88.024,87.991,3.68426471]
[1770578829896,8.70878691,88.023,87.991,3.68426471]
[1770578830098,8.70878691,88.022,87.991,3.68426471]
[1770578830300,14.42062005,88.046,88.003,3.68426471]
[1770578830504,3.87287204,88.058,88.011,3.68426471]
[1770578831413,10.54774801,88.068,88.021,3.68426471]
[1770578831607,3.87287204,88.072,88.021,3.68426471]
[1770578832509,3.87287204,88.072,88.022,3.68426471]
[1770578832712,3.87287204,88.072,87.96,159.2867]
[1770578832713,3.87287204,88.072,88.031,3.68426471]
[1770578833607,3.87287204,88.089,88.034,3.68426471]
[1770578834105,3.87287204,88.089,88.038,10.2308]
[1770578834309,3.87287204,88.102,88.051,3.68426471]
[1770578835111,3.66821962,88.119,88.061,4.01460013]
[1770578835408,158.8695,88.192,88.002,20.4698]
[1770578835409,3.66821962,88.109,88.057,4.01460013]
[1770578835609,3.66821962,88.099,88.057,4.01460013]
[1770578835802,3.66821962,88.099,88.061,4.01460013]
[1770578836205,3.66821962,88.112,88.061,4.01460013]
[1770578839018,3.66821962,88.112,88.071,4.01460013]
[1770578840111,1.97541516,88.15,88.028,10.2319]
[1770578840112,4.29622972,88.1,88.028,10.2319]
[1770578840316,4.29622972,88.1,87.977,159.2557]
[1770578840317,3.66821962,88.079,88.027,4.01460013]
[1770578840615,3.66821962,88.069,88.027,4.01460013]
[1770578841619,3.66821962,88.079,88.031,4.01460013]
[1770578844417,4.29622972,88.07,88.031,4.01460013]
[1770578844919,4.29622972,88.08,88.031,4.01460013]
[1770578845815,7.96444934,88.1,88.05,4.29622972]
[1770578846015,3.66821962,88.099,88.051,4.01460013]
[1770578847916,4.28983532,88.07,88.022,4.01460013]
[1770578848316,7.95805494,88.07,88.022,4.01460013]
[1770578848623,3.66821962,88.079,88.031,4.01460013]
[1770578848922,3.66821962,88.069,88.02,8.30443545]
[1770578849117,3.66821962,88.069,88.021,4.01460013]
[1770578854424,3.66821962,88.079,88.026,4.01460013]
[1770578854819,4.28983532,88.07,88.026,4.01460013]
[1770578855123,7.95805494,88.07,88.026,4.01460013]
[1770578855419,3.66821962,88.059,88.014,10.2335]
[1770578856417,3.66821962,88.059,88.012,4.01460013]
[1770578856626,3.66821962,88.049,87.999,4.01460013]
[1770578859932,3.66821962,88.049,88.0,4.28983532]
[1770578860133,3.66821962,88.049,88.001,4.01460013]
[1770578880138,3.81744397,88.039,87.991,4.03548658]
[1770578881245,4.28983532,88.05,87.997,4.03548658]
[1770578881445,3.81744397,88.051,88.001,4.03548658]
[1770578881636,3.81744397,88.049,88.001,4.03548658]
[1770578881839,3.81744397,88.047,88.001,4.03548658]
[1770578882341,3.81744397,88.045,88.001,4.03548658]
[1770578882541,3.81744397,88.039,87.991,4.03548658]
[1770578883138,3.81744397,88.029,87.979,4.03548658]
[1770578883344,3.81744397,88.027,87.979,4.03548658]
[1770578883647,3.81744397,88.025,87.979,4.03548658]
[1770578887349,3.81744397,88.025,87.98,4.28983532]
[1770578888152,3.81744397,88.025,87.981,4.03548658]
[1770578888353,3.81744397,88.039,87.991,4.03548658]
[1770578894557,20.4487,88.094,87.977,4.03548658]
[1770578894558,3.81744397,88.028,87.977,4.03548658]
[1770578898164,3.876338,88.053,88.001,3.9727241]
[1770578899160,3.876338,88.053,88.011,3.9727241]
[1770578899358,3.876338,88.069,88.02,8.26255942]
[1770578899758,8.65488253,88.068,88.02,8.26255942]
[1770578900063,3.876338,88.066,88.02,8.26255942]
[1770578900259,3.876338,88.064,88.02,8.26255942]
[1770578900461,12.53122053,88.063,88.02,8.26255942]
[1770578900763,8.65488253,88.062,88.02,8.26255942]
[1770578900960,3.876338,88.063,88.02,8.26255942]
[1770578901161,8.65672832,88.062,88.02,8.26255942]
[1770578901355,3.876338,88.063,88.02,8.26255942]
[1770578901557,8.65671719,88.062,88.02,8.26255942]
[1770578901752,3.876338,88.063,88.02,3.9727241]
[1770578901957,8.6567141,88.062,88.02,3.9727241]
[1770578902158,3.876338,88.063,88.02,3.9727241]
[1770578902361,3.876338,88.061,88.02,3.9727241]
[1770578903864,3.876338,88.059,88.008,3.9727241]
[1770578904766,3.876338,88.059,88.011,3.9727241]
[1770578909861,8.64668453,88.058,88.011,3.9727241]
[1770578910168,12.52302597,88.057,88.011,3.9727241]
[1770578910366,8.64668797,88.056,88.011,3.9727241]
[1770578910567,3.876338,88.057,88.011,3.9727241]
[1770578914165,3.876338,88.057,88.01,4.29399279]
[1770578914368,3.876338,88.055,88.001,3.9727241]
[1770578914571,3.876338,88.053,88.001,3.9727241]
[1770578914770,3.876338,88.051,88.001,3.9727241]
[1770578914969,3.876338,88.049,88.001,3.9727241]
[1770578916573,3.876338,88.049,88.011,3.9727241]
[1770578917472,3.876338,88.062,88.021,3.9727241]
[1770578919177,14.103038,88.074,88.031,3.9727241]
[1770578919368,8.63491646,88.073,88.031,3.9727241]
[1770578919670,3.876338,88.071,88.02,8.26671689]
[1770578919878,3.876338,88.071,88.021,3.9727241]
[1770578920375,3.876338,88.069,88.014,10.2335]
[1770578920575,3.876338,88.067,88.014,10.2335]
[1770578920778,3.876338,88.065,88.01,8.26671689]
[1770578921077,3.876338,88.063,88.01,8.26671689]
[1770578921473,3.876338,88.063,88.011,3.9727241]
[1770578921879,3.876338,88.059,88.011,3.9727241]
[1770578922080,3.876338,88.059,87.999,3.9727241]
[1770578922275,3.876338,88.049,87.999,3.9727241]
[1770578923879,3.876338,88.049,88.001,3.9727241]
[1770578930287,3.99958777,88.06,88.011,3.96948427]
[1770578931785,3.99958777,88.056,88.011,3.96948427]
[1770578939793,3.99958777,88.054,88.011,3.96948427]
[1770578940090,3.99958777,88.052,88.011,3.96948427]
[1770578941195,3.99958777,88.05,88.011,3.96948427]
[1770578941792,4.29399279,88.04,87.983,3.96948427]
[1770578941992,3.99958777,88.038,87.983,3.96948427]
[1770578942190,3.99958777,88.036,87.983,3.96948427]
[1770578942490,8.64272038,88.035,87.983,3.96948427]
[1770578942691,8.64272038,88.034,87.983,3.96948427]
[1770578942894,8.64272038,88.033,87.983,3.96948427]
[1770578943197,8.81188659,88.032,87.983,3.96948427]
[1770578943391,8.81188659,88.031,87.983,3.96948427]
[1770578943696,8.81188659,88.03,87.983,3.96948427]
[1770578943994,8.81188659,88.029,87.983,3.96948427]
[1770578944189,8.81188659,88.028,87.983,3.96948427]
[1770578944494,3.99958777,88.035,87.983,3.96948427]
[1770578944694,12.81549371,88.034,87.983,3.96948427]
[1770578944893,8.81590594,88.033,87.983,3.96948427]
[1770578945097,8.81590594,88.032,87.983,3.96948427]
[1770578945294,8.81590594,88.031,87.983,3.96948427]
[1770578945494,8.81590594,88.03,87.983,3.96948427]
[1770578945695,8.81590594,88.029,87.983,3.96948427]
[1770578945896,3.99958777,88.034,87.983,3.96948427]
[1770578946096,8.81461718,88.033,87.983,3.96948427]
[1770578946296,8.81461718,88.032,87.991,3.96948427]
[1770578946598,8.81461718,88.031,87.991,3.96948427]
[1770578946792,8.81461718,88.03,87.991,3.96948427]
[1770578946991,8.81461718,88.029,87.991,3.96948427]
[1770578947192,3.99958777,88.034,87.991,3.96948427]
[1770578947394,8.81277253,88.033,87.991,3.96948427]
[1770578947592,8.81277253,88.032,87.991,3.96948427]
[1770578947896,8.81277253,88.031,87.991,3.96948427]
[1770578948096,8.81277253,88.03,87.991,3.96948427]
[1770578948295,3.99958777,88.034,87.991,3.96948427]
[1770578948494,8.81199635,88.033,87.991,3.96948427]
[1770578948696,12.81158412,88.032,87.991,3.96948427]
[1770578948899,8.81199635,88.031,87.991,3.96948427]
[1770578949097,3.99958777,88.029,87.991,3.96948427]
[1770578949398,3.99958777,88.027,87.991,3.96948427]
[1770578949697,12.81158412,88.026,87.991,3.96948427]
[1770578950009,3.99958777,88.026,87.98,3.96948427]
[1770578950293,3.99958777,88.024,87.98,3.96948427]
[1770578951400,3.99958777,88.024,87.981,3.96948427]
[1770578962100,4.29399279,88.04,87.981,3.96948427]
[1770578962303,3.65604021,88.035,87.991,3.78150233]
[1770578963806,3.65604021,88.035,87.992,3.78150233]
[1770578965101,3.65604021,88.033,87.992,3.78150233]
[1770578965304,3.65604021,88.031,87.992,3.78150233]
[1770578969705,8.81496496,88.03,87.992,3.78150233]
[1770578969906,3.65604021,88.028,87.992,3.78150233]
[1770578970104,8.81496496,88.027,87.992,3.78150233]
[1770578970304,8.81496496,88.026,87.992,3.78150233]
[1770578970505,3.65604021,88.028,87.992,3.78150233]
[1770578970705,3.65604021,88.026,87.992,3.78150233]
[1770578974108,8.81538911,88.025,87.992,3.78150233]
[1770578974309,3.65604021,88.025,87.992,3.78150233]
[1770578977110,8.81819945,88.024,87.992,3.78150233]
[1770578977301,3.65604021,88.025,87.992,3.78150233]
[1770578977502,8.8183553,88.024,87.992,3.78150233]
[1770578977705,3.65604021,88.043,87.992,3.78150233]
[1770578978008,3.65604021,88.041,87.992,3.78150233]
[1770578978309,3.65604021,88.039,87.992,3.78150233]
[1770578978500,3.65604021,88.037,87.992,3.78150233]
[1770578978707,12.474803,88.036,87.992,3.78150233]
[1770578978900,8.81876279,88.035,87.992,3.78150233]
[1770578979106,8.81876279,88.034,87.992,3.78150233]
[1770578979307,8.81876279,88.033,87.992,3.78150233]
[1770578979507,3.65604021,88.036,87.992,3.78150233]
[1770578979708,12.47798825,88.035,87.992,3.78150233]
[1770578979909,3.65604021,88.035,87.992,3.78150233]
[1770578989815,4.00755688,88.033,87.992,3.78150233]
[1770578990416,4.00755688,88.027,87.992,3.78150233]
[1770578990606,4.00755688,88.025,87.992,3.78150233]
[1770578990810,8.83319564,88.024,87.992,3.78150233]
[1770578991011,4.00755688,88.025,87.992,3.78150233]
[1770578992117,10.2301,88.045,87.992,3.78150233]
[1770578992314,4.00755688,88.043,87.992,3.78150233]
[1770578992514,4.00755688,88.041,87.992,3.78150233]
[1770578992816,4.00755688,88.039,87.992,3.78150233]
[1770578993018,4.00755688,88.037,87.992,3.78150233]
[1770578993217,4.00755688,88.035,87.992,3.78150233]
[1770578993417,8.83186142,88.034,87.992,3.78150233]
[1770578993616,8.83186142,88.033,87.992,3.78150233]
[1770578993820,8.83186142,88.032,87.992,3.78150233]
[1770578994020,8.83186142,88.031,87.992,3.78150233]
[1770578994219,4.00755688,88.035,87.992,3.78150233]
[1770578994419,8.83069394,88.034,88.001,3.73094686]
[1770578994622,8.83069394,88.033,88.001,3.73094686]
[1770578994816,8.83069394,88.032,88.001,3.73094686]
[1770578995016,4.00755688,88.045,88.001,3.73094686]
[1770578995227,4.00755688,88.043,88.001,3.73094686]
[1770578995521,4.00755688,88.041,88.001,3.73094686]
[1770578995720,4.00755688,88.039,88.001,3.73094686]
[1770578995918,4.00755688,88.037,88.001,3.73094686]
[1770578996118,4.00755688,88.016,87.967,16.0]
[1770578996418,4.00755688,88.014,87.95,4.29597975]
[1770578996621,4.00755688,87.989,87.937,3.73094686]
[1770578996812,4.00755688,87.989,87.826,33.7053752]
[1770578996813,4.00755688,87.959,87.906,3.73094686]
[1770578997014,8.82668923,87.958,87.905,3.365e-05]
[1770578997213,4.00755688,87.919,87.866,3.73094686]
[1770579000124,4.00755688,87.951,87.866,3.73094686]
[1770579000422,4.00755688,87.949,87.91,4.29597975]
[1770579000823,4.00755688,87.965,87.92,4.29597975]
[1770579001023,4.00755688,87.965,87.93,4.29597975]
[1770579001526,4.00755688,87.965,87.92,4.29597975]
[1770579003030,4.00755688,87.965,87.913,3.73094686]
[1770579006833,4.00755688,87.965,87.896,10.2473]
[1770579006834,4.00755688,87.979,87.921,3.73094686]
[1770579012143,4.00755688,87.977,87.921,3.73094686]
[1770579012644,4.00755688,87.959,87.91,4.29597975]
[1770579013235,4.00755688,87.959,87.91,8.02692661]
[1770579013640,4.00755688,87.959,87.911,3.73094686]
[1770579015245,4.00755688,87.959,87.921,3.67354977]
[1770579015439,14.13737031,87.974,87.921,3.67354977]
[1770579016246,3.89907031,87.97,87.921,3.67354977]
[1770579017244,10.2388,87.969,87.921,3.67354977]
[1770579017443,3.89907031,87.968,87.921,3.67354977]
[1770579019950,3.89907031,87.968,87.872,16.0]
[1770579019951,3.89907031,87.983,87.941,3.67354977]
[1770579029158,159.128,88.049,87.941,3.67354977]
[1770579029159,3.89907031,87.995,87.95,4.30102323]
[1770579029362,3.89907031,88.02,87.971,3.67354977]
[1770579029555,3.89907031,88.02,87.98,7.974573]
[1770579029757,3.89907031,88.036,87.981,3.67354977]
[1770579030160,3.89907031,88.036,87.991,3.67354977]
[1770579030360,3.89907031,88.058,88.001,3.67354977]
[1770579030757,4.30102323,88.05,88.001,3.67354977]
[1770579031358,8.20009354,88.05,88.001,3.67354977]
[1770579032359,179.0,88.149,88.001,3.67354977]
[1770579032360,4.30102323,88.06,88.001,3.67354977]
[1770579032559,3.89907031,88.059,88.001,3.67354977]
[1770579035062,3.89907031,88.058,88.001,3.67354977]
[1770579035761,3.89907031,88.056,88.001,3.67354977]
[1770579036661,3.89907031,88.069,88.021,3.67354977]
[1770579036865,4.30102323,88.08,88.031,3.67354977]
[1770579037067,3.89907031,88.079,88.031,3.67354977]
[1770579038866,3.89907031,88.077,88.031,3.67354977]
[1770579043679,10.2231,88.105,88.031,3.67354977]
[1770579043872,4.30102323,88.1,88.041,3.67354977]
[1770579044073,4.30102323,88.1,87.979,34.11]
[1770579044074,4.30102323,88.07,88.028,3.67354977]
[1770579044278,3.89907031,88.069,88.028,3.67354977]
[1770579044972,3.95218003,88.059,88.015,3.65983035]
[1770579045281,3.95218003,88.049,88.002,3.65983035]
[1770579048982,4.30102323,88.06,88.002,3.65983035]
[1770579049679,3.95218003,88.059,88.007,3.65983035]
[1770579052180,4.30102323,88.05,88.007,3.65983035]
[1770579052481,3.95218003,88.059,88.007,3.65983035]
[1770579053378,4.30102323,88.02,87.981,3.65983035]
[1770579053683,3.95218003,88.029,87.981,3.65983035]
[1770579054087,4.30102323,88.02,87.981,3.65983035]
[1770579054281,4.30102323,88.04,87.981,3.65983035]
[1770579054483,3.95218003,88.048,88.002,3.65983035]
[1770579054779,8.25320326,88.06,88.002,3.65983035]
[1770579054984,3.95218003,88.059,88.002,3.65983035]
[1770579056887,3.95218003,88.049,88.002,3.65983035]
[1770579057886,4.30102323,88.04,88.002,3.65983035]
[1770579058186,3.95218003,88.039,88.002,3.65983035]
[1770579060589,3.95218003,88.079,88.031,3.65983035]
[1770579061385,3.95218003,88.094,88.041,3.65983035]
[1770579062488,3.95218003,88.094,88.044,3.65983035]
[1770579062684,3.95218003,88.089,88.04,4.30102323]
[1770579062889,3.95218003,88.079,88.031,3.65983035]
[1770579063588,4.30102323,88.1,88.043,3.65983035]
[1770579063890,3.95218003,88.099,88.043,3.65983035]
[1770579064681,3.95218003,88.099,88.044,10.23]
[1770579064886,3.95218003,88.099,88.045,3.65983035]
[1770579067893,3.95218003,88.112,88.061,3.65983035]
[1770579068491,3.95218003,88.126,88.075,3.65983035]
[1770579068789,8.25320326,88.11,88.06,7.96085358]
[1770579068990,8.25320326,88.11,88.061,3.65983035]
[1770579069590,3.95218003,88.11,88.061,3.65983035]
[1770579069792,3.95218003,88.11,88.063,3.65983035]
[1770579073589,3.95218003,88.099,88.05,3.65983035]
[1770579074397,3.95218003,88.099,88.053,3.65983035]
[1770579076195,4.30102323,88.11,88.057,3.99907713]
[1770579076398,4.004592,88.119,88.071,3.99907713]
[1770579076599,8.93202453,88.118,88.071,3.99907713]
[1770579076798,8.93202453,88.117,88.071,3.99907713]
[1770579076999,8.93202453,88.116,88.071,3.99907713]
[1770579077199,8.93202453,88.115,88.071,3.99907713]
[1770579077403,4.004592,88.119,88.071,3.99907713]
[1770579077699,8.93070324,88.118,88.071,3.99907713]
[1770579077895,8.93070324,88.117,88.071,3.99907713]
[1770579078101,8.93070324,88.116,88.071,3.99907713]
[1770579078402,8.93070324,88.115,88.071,3.99907713]
[1770579078603,4.004592,88.119,88.071,3.99907713]
[1770579078800,8.92856807,88.118,88.071,3.99907713]
[1770579079000,8.92856807,88.117,88.071,3.99907713]
[1770579079200,8.92856807,88.116,88.071,3.99907713]
[1770579079400,8.92856807,88.115,88.071,3.99907713]
[1770579079695,4.004592,88.119,88.071,3.99907713]
[1770579079902,4.004592,88.099,88.048,3.99907713]
[1770579080104,4.004592,88.097,88.048,3.99907713]
[1770579080303,12.93072259,88.096,88.048,3.99907713]
[1770579080504,8.92613059,88.095,88.048,3.99907713]
[1770579080706,8.92613059,88.094,88.048,3.99907713]
[1770579080905,4.004592,88.096,88.048,3.99907713]
[1770579081104,8.92842931,88.095,88.048,3.99907713]
[1770579081306,8.92842931,88.094,88.048,3.99907713]
[1770579081508,4.004592,88.096,88.048,3.99907713]
[1770579081706,8.93254068,88.095,88.048,3.99907713]
[1770579081907,8.93254068,88.094,88.048,3.99907713]
[1770579082108,4.004592,88.095,88.048,3.99907713]
[1770579082309,4.004592,88.093,88.048,3.99907713]
[1770579082498,4.004592,88.091,88.048,3.99907713]
[1770579083204,4.30102323,88.09,88.048,3.99907713]
[1770579083409,4.004592,88.089,88.048,3.99907713]
[1770579083809,4.30102323,88.09,88.042,10.2303]
[1770579083810,4.004592,88.087,88.042,10.2303]
[1770579085806,4.004592,88.087,88.035,3.99907713]
[1770579086008,4.30102323,88.05,88.0,3.99907713]
[1770579086209,4.004592,88.059,88.011,3.99907713]
[1770579086611,8.93432311,88.058,87.984,3.99907713]
[1770579086811,4.004592,88.049,88.001,3.99907713]
[1770579087006,4.004592,88.049,88.002,14.23407713]
[1770579087310,4.004592,88.049,88.003,3.99907713]
[1770579087711,4.004592,88.049,88.004,14.23377713]
[1770579089105,4.004592,88.049,88.006,14.23347713]
[1770579092013,4.29459583,88.06,88.01,4.29459583]
[1770579092216,4.29459583,88.06,88.011,3.99907713]
[1770579093011,4.004592,88.064,88.011,3.99907713]
[1770579093213,4.004592,88.078,88.021,3.99907713]
[1770579093408,8.95649409,88.077,88.021,3.99907713]
[1770579093609,4.004592,88.078,88.021,3.99907713]
[1770579094515,4.004592,88.078,88.032,3.99907713]
[1770579095716,4.004592,88.078,88.034,3.99907713]
[1770579097611,4.29459583,88.09,88.038,10.2307]
[1770579097917,8.96131277,88.089,88.039,3.99907713]
[1770579098215,8.96131277,88.088,88.04,4.29459583]
[1770579098415,8.29918783,88.09,88.041,3.99907713]
[1770579098613,8.95950043,88.089,88.041,3.99907713]
[1770579098813,8.95950043,88.088,88.041,3.99907713]
[1770579099018,8.29918783,88.09,88.041,3.99907713]
[1770579099315,4.004592,88.089,88.041,3.99907713]
[1770579099916,4.004592,88.087,88.041,3.99907713]
[1770579100115,4.004592,88.085,88.041,3.99907713]
[1770579100317,4.004592,88.083,88.041,3.99907713]
[1770579103122,8.96757475,88.082,88.041,3.99907713]
[1770579103419,4.004592,88.082,88.041,3.99907713]
[1770579103615,4.004592,88.059,88.01,4.29459583]
[1770579103815,4.004592,88.059,88.007,3.99907713]
[1770579104319,4.004592,88.059,88.008,10.2342]
[1770579105019,4.29459583,88.04,87.997,10.2354]
[1770579105216,3.81168411,88.039,87.997,10.2354]
[1770579105716,4.29459583,88.03,87.986,452.64568567]
[1770579106420,3.81168411,88.029,87.986,452.64568567]
[1770579107518,3.81168411,88.019,87.978,3.66594736]
[1770579109626,3.81168411,88.034,87.99,4.29459583]
[1770579109926,3.81168411,88.034,87.985,3.66594736]
[1770579110319,3.81168411,88.029,87.973,3.66594736]
[1770579111223,3.81168411,88.029,87.923,16.0]
[1770579111224,3.81168411,88.029,87.981,3.66594736]
[1770579112028,3.81168411,88.029,87.974,10.2382]
[1770579112519,3.81168411,88.029,87.981,3.66594736]
[1770579113228,3.81168411,88.044,88.0,4.29459583]
[1770579114026,179.0,88.094,87.938,16.0]
[1770579114027,3.81168411,88.058,88.02,4.29459583]
[1770579115030,3.81168411,88.058,88.011,13.89984736]
[1770579115724,3.81168411,88.058,88.012,3.66594736]
[1770579122026,3.81168411,88.058,87.994,3.66594736]
[1770579122230,3.81168411,88.039,87.981,3.66594736]
[1770579122426,3.81168411,88.029,87.981,3.66594736]
[1770579128644,3.81168411,88.05,87.983,3.66594736]
[1770579128835,3.81168411,88.059,88.01,4.29459583]
[1770579129036,3.81168411,88.049,88.001,3.66594736]
[1770579129437,3.81168411,88.039,87.991,3.66594736]
[1770579130337,3.81168411,88.039,87.991,13.90214736]
[1770579130639,3.81168411,88.037,87.991,3.66594736]
[1770579145163,3.65275487,88.035,87.991,3.66594736]
[1770579146865,3.65275487,88.033,87.991,3.66594736]
[1770579147258,3.65275487,88.031,87.991,3.66594736]
[1770579147665,10.2297,88.047,87.98,14.53199583]
[1770579147666,3.65275487,88.029,87.98,14.1891682]
[1770579147964,3.65275487,88.027,87.981,3.9517682]
[1770579148269,12.64045718,88.026,87.981,3.9517682]
[1770579148466,8.98770231,88.025,87.981,3.9517682]
[1770579148662,3.65275487,88.026,87.981,3.9517682]
[1770579148867,8.99063645,88.025,87.981,3.9517682]
[1770579149163,8.99230381,88.024,87.981,3.9517682]
[1770579149354,3.65275487,88.026,87.981,3.9517682]
[1770579149558,8.99252153,88.025,87.981,3.9517682]
[1770579149759,8.99252153,88.024,87.981,3.9517682]
[1770579149966,8.9933492,88.023,87.981,3.9517682]
[1770579150267,8.9933492,88.022,87.981,3.9517682]
[1770579150467,8.9933492,88.021,87.981,3.9517682]
[1770579150667,3.65275487,88.026,87.981,3.9517682]
[1770579150864,12.64780201,88.025,87.981,3.9517682]
[1770579151167,12.64780201,88.024,87.981,3.9517682]
[1770579151370,8.99504714,88.023,87.981,3.9517682]
[1770579151562,8.99504714,88.022,87.981,3.9517682]
[1770579151762,8.99504714,88.021,87.981,3.9517682]
[1770579151960,3.65275487,88.024,87.981,3.9517682]
[1770579152161,8.99463354,88.023,87.981,3.9517682]
[1770579152361,8.99463354,88.022,87.981,3.9517682]
[1770579152661,8.99463354,88.021,87.981,3.9517682]
[1770579152861,3.65275487,88.024,87.981,3.9517682]
[1770579153061,8.98965113,88.023,87.981,3.9517682]
[1770579153261,8.98965113,88.022,87.981,3.9517682]
[1770579153462,8.98965113,88.021,87.981,3.9517682]
[1770579153663,3.65275487,88.047,87.991,3.9517682]
[1770579153966,12.64193788,88.046,88.001,3.9517682]
[1770579154168,8.98918301,88.045,88.001,3.9517682]
[1770579154361,8.98918301,88.044,88.001,3.9517682]
[1770579154563,8.98918301,88.043,88.001,3.9517682]
[1770579154758,8.98918301,88.042,88.001,3.9517682]
[1770579154963,8.98918301,88.041,88.001,3.9517682]
[1770579155170,8.98918301,88.041,87.947,16.0]
[1770579155171,3.65275487,88.029,87.97,4.29698932]
[1770579155367,3.65275487,88.009,87.956,3.9517682]
[1770579155565,4.29698932,88.01,87.956,3.9517682]
[1770579155566,3.65275487,88.007,87.956,3.9517682]
[1770579155770,3.65275487,88.005,87.956,3.9517682]
[1770579155972,3.65275487,88.003,87.956,3.9517682]
[1770579156672,3.65275487,88.003,87.961,3.9517682]
[1770579157877,3.65275487,87.999,87.961,3.9517682]
[1770579158466,3.65275487,87.997,87.94,4.29698932]
[1770579158673,3.65275487,87.989,87.94,3.9517682]
[1770579159179,3.65275487,87.989,87.942,3.9517682]
[1770579159574,3.65275487,88.001,87.951,3.9517682]
[1770579159771,3.65275487,87.999,87.951,3.9517682]
[1770579159972,3.65275487,87.989,87.951,3.9517682]
[1770579162674,3.65275487,87.989,87.939,3.9517682]
[1770579163269,3.65275487,88.001,87.951,3.9517682]
[1770579163871,3.65275487,87.999,87.951,3.9517682]
[1770579167575,3.65275487,87.999,87.94,4.29698932]
[1770579167776,3.99591809,87.989,87.936,3.78761473]
[1770579168576,3.99591809,87.989,87.925,10.2438]
[1770579168775,3.99591809,87.979,87.925,10.2438]
[1770579168984,3.99591809,87.969,87.925,10.2438]
[1770579169778,4.29698932,88.0,87.95,4.29698932]
[1770579170078,3.99591809,87.998,87.951,3.78761473]
[1770579171682,3.99591809,88.025,87.971,3.78761473]
[1770579171877,3.99591809,88.023,87.971,3.78761473]
[1770579172179,3.99591809,88.021,87.971,3.78761473]
[1770579172380,3.99591809,88.019,87.971,3.78761473]
[1770579172582,8.96171576,88.018,87.971,3.78761473]
[1770579172783,8.96171576,88.017,87.971,3.78761473]
[1770579172976,3.99591809,88.019,87.971,3.78761473]
[1770579173173,8.96129037,88.018,87.971,3.78761473]
[1770579173370,8.96129037,88.017,87.971,3.78761473]
[1770579173573,3.99591809,88.019,87.971,3.78761473]
[1770579173778,8.96122477,88.018,87.971,3.78761473]
[1770579173976,12.95714286,88.017,87.971,3.78761473]
[1770579174172,3.99591809,88.016,87.971,3.78761473]
[1770579178386,3.99591809,88.014,87.971,3.78761473]
[1770579180686,3.99591809,88.03,87.981,3.78761473]
[1770579180888,8.99642374,88.029,87.981,3.78761473]
[1770579181190,8.99642374,88.028,87.981,3.78761473]
[1770579181392,8.99642374,88.027,87.99,4.29698932]
[1770579181580,3.99591809,88.03,87.991,3.78761473]
[1770579183184,3.99591809,88.029,87.991,3.78761473]
[1770579184486,4.29698932,88.04,87.991,3.78761473]
[1770579184694,3.99591809,88.038,87.98,4.29698932]
[1770579184987,3.99591809,88.036,87.98,8.08460405]
[1770579185192,3.99591809,88.034,87.981,3.78761473]
[1770579185391,3.99591809,88.032,87.981,3.78761473]
[1770579185586,9.00380971,88.031,87.981,3.78761473]
[1770579185892,3.99591809,88.029,87.981,3.78761473]
[1770579188693,3.99591809,88.027,87.981,3.78761473]
[1770579189494,3.99591809,88.025,87.981,3.78761473]
[1770579190697,4.29698932,88.03,87.977,10.2378]
[1770579190698,3.99591809,88.023,87.977,10.2378]
[1770579190897,3.99591809,88.023,87.977,14.02541473]
[1770579191094,3.99591809,88.023,87.978,3.78761473]
[1770579192297,14.04564763,88.054,87.933,16.0]
[1770579192298,3.99591809,88.009,87.951,3.78761473]
[1770579192597,3.99591809,88.009,87.894,28.10431193]
[1770579192598,3.99591809,87.989,87.941,3.78761473]
[1770579193594,3.99591809,87.987,87.941,3.78761473]
[1770579194497,3.99591809,87.985,87.941,3.78761473]
[1770579194696,3.99591809,87.983,87.941,3.78761473]
[1770579195901,3.79035915,87.979,87.926,3.69419725]